bitfinex-derivatives/quotes_SOLF0:USTF0_20260104
["timestamp","ask_amount","ask_price","bid_price","bid_amount"]
[1767565349337,6.7094,134.2,134.14,0.31657002]
[1767565349534,5.66094655,134.19,134.14,0.31657002]
[1767565349832,5.66094655,134.18,134.14,0.31657002]
[1767565350135,6.7094,134.2,134.14,0.31657002]
[1767565350337,5.66098891,134.19,134.14,0.31657002]
[1767565350535,5.66098891,134.18,134.14,0.31657002]
[1767565350738,6.7094,134.2,134.14,0.31657002]
[1767565350936,5.66103964,134.19,134.14,0.31657002]
[1767565351124,5.66103964,134.18,134.14,0.31657002]
[1767565351323,88.06,134.22,134.1,0.33885291]
[1767565351324,5.66132008,134.17,134.1,0.33885291]
[1767565351525,88.06,134.22,134.11,0.33885291]
[1767565351729,7.52587792,134.21,134.11,0.33885291]
[1767565351938,7.52587792,134.2,134.11,0.33885291]
[1767565352136,7.52587792,134.19,134.11,0.33885291]
[1767565352331,5.66156577,134.18,134.11,0.33885291]
[1767565352531,5.66156577,134.17,134.12,0.33885291]
[1767565352738,6.7089,134.21,134.12,0.33885291]
[1767565353038,7.5259255,134.2,134.12,0.33885291]
[1767565353332,7.5259255,134.19,134.12,0.33885291]
[1767565353540,5.66161852,134.18,134.13,6.7128]
[1767565353731,5.66161852,134.17,134.13,6.7128]
[1767565354031,6.7089,134.21,134.13,6.7128]
[1767565354323,7.52607395,134.2,134.13,6.7128]
[1767565354525,7.52607395,134.19,134.13,6.7128]
[1767565354728,5.66176886,134.18,134.13,6.7128]
[1767565354925,5.66176886,134.17,134.13,6.7128]
[1767565355136,6.7089,134.21,134.13,6.7128]
[1767565355336,7.52616293,134.2,134.13,6.7128]
[1767565355537,7.52616293,134.19,134.13,6.7128]
[1767565355735,5.66185784,134.18,134.13,6.7128]
[1767565355935,5.66185784,134.17,134.13,6.7128]
[1767565356138,6.7094,134.2,134.13,6.7128]
[1767565356340,7.52651488,134.19,134.13,6.7128]
[1767565356539,5.66220979,134.18,134.13,6.7128]
[1767565356743,5.66220979,134.17,134.13,6.7128]
[1767565357042,6.7094,134.2,134.13,6.7128]
[1767565357240,5.66271769,134.19,134.13,6.7128]
[1767565357442,5.66271769,134.18,134.13,6.7128]
[1767565357634,5.66271769,134.17,134.13,6.7128]
[1767565357834,6.7094,134.2,134.13,6.7128]
[1767565358034,5.66338719,134.19,134.13,6.7128]
[1767565358235,5.66338719,134.18,134.13,6.7128]
[1767565358436,5.66338719,134.17,134.13,6.7128]
[1767565358636,6.7094,134.2,134.12,7.05185291]
[1767565358841,5.66464895,134.19,134.12,7.05185291]
[1767565359151,5.66464895,134.18,134.12,7.05185291]
[1767565359445,5.66464895,134.17,134.12,7.05185291]
[1767565359632,6.7094,134.2,134.12,7.05185291]
[1767565359836,5.66624409,134.19,134.13,7.04749505]
[1767565360036,5.66624409,134.18,134.13,7.04749505]
[1767565360241,5.66624409,134.17,134.13,7.04749505]
[1767565360437,6.7094,134.2,134.13,7.04749505]
[1767565360632,5.66656831,134.19,134.13,7.04749505]
[1767565360845,5.66656831,134.18,134.13,7.04749505]
[1767565361039,5.66656831,134.17,134.13,7.04749505]
[1767565361240,6.7094,134.2,134.13,7.04749505]
[1767565361440,5.66648135,134.19,134.13,7.04749505]
[1767565361642,5.66648135,134.18,134.13,7.04749505]
[1767565361841,5.66648135,134.17,134.13,7.04749505]
[1767565362042,6.7094,134.2,134.13,7.04749505]
[1767565362245,5.66647859,134.19,134.13,7.04749505]
[1767565362442,5.66647859,134.18,134.13,7.04749505]
[1767565362741,5.66647859,134.17,134.13,7.04749505]
[1767565363046,6.7094,134.2,134.13,7.04749505]
[1767565363240,5.66640197,134.19,134.13,7.04749505]
[1767565363440,5.66640197,134.18,134.13,7.04749505]
[1767565363648,5.66640197,134.17,134.13,7.04749505]
[1767565363848,6.7094,134.2,134.13,7.04749505]
[1767565364046,5.6663287,134.19,134.13,7.04749505]
[1767565364244,6.7094,134.2,134.13,7.04749505]
[1767565364245,5.6663287,134.18,134.13,7.04749505]
[1767565364445,5.6663287,134.17,134.13,7.04749505]
[1767565364646,6.7094,134.2,134.13,7.04749505]
[1767565364849,5.66625868,134.19,134.13,7.04749505]
[1767565365047,5.66625868,134.18,134.13,7.04749505]
[1767565365249,5.66625868,134.17,134.13,7.04749505]
[1767565365446,6.7094,134.2,134.13,7.04749505]
[1767565365646,5.6662766,134.19,134.13,7.04749505]
[1767565365846,5.6662766,134.18,134.13,7.04749505]
[1767565366052,5.6662766,134.17,134.13,7.04749505]
[1767565366252,6.7094,134.2,134.13,7.04749505]
[1767565366548,5.66622472,134.19,134.13,7.04749505]
[1767565366743,5.66622472,134.18,134.13,7.04749505]
[1767565366938,6.7094,134.2,134.13,7.04749505]
[1767565366939,5.66622472,134.17,134.13,7.04749505]
[1767565367146,6.7094,134.2,134.13,7.04749505]
[1767565367347,5.6660819,134.19,134.13,7.04749505]
[1767565367649,5.6660819,134.18,134.13,7.04749505]
[1767565367848,5.6660819,134.17,134.13,7.04749505]
[1767565368042,6.7094,134.2,134.13,7.04749505]
[1767565368244,5.66606646,134.19,134.13,7.04749505]
[1767565368550,5.66606646,134.18,134.13,7.04749505]
[1767565368746,5.66606646,134.17,134.13,7.04749505]
[1767565368947,5.66545913,134.16,134.11,7.04819505]
[1767565369250,1.70798625,134.2,134.11,7.04819505]
[1767565369450,1.70798625,134.18,134.11,7.04819505]
[1767565369744,5.68698152,134.17,134.11,7.04819505]
[1767565369945,5.68698152,134.16,134.11,7.04819505]
[1767565370145,5.68698152,134.15,134.11,0.33479505]
[1767565370349,6.7109,134.17,134.11,0.33479505]
[1767565370549,5.68614958,134.16,134.11,0.33479505]
[1767565370749,5.68614958,134.15,134.11,0.33479505]
[1767565370945,6.7109,134.17,134.11,0.33479505]
[1767565371246,5.68614958,134.16,134.11,0.33479505]
[1767565371449,6.7109,134.17,134.11,0.33479505]
[1767565371450,5.68614958,134.15,134.11,0.33479505]
[1767565371644,6.7109,134.17,134.11,0.33479505]
[1767565371844,5.68549745,134.16,134.11,0.33479505]
[1767565372045,5.68549745,134.15,134.11,0.33479505]
[1767565372245,6.7109,134.17,134.09,236.89127935]
[1767565372246,6.7109,134.17,134.09,237.2260744]
[1767565372446,5.68626611,134.16,134.09,237.2260744]
[1767565372645,6.7109,134.17,134.09,237.2260744]
[1767565372646,5.68626611,134.15,134.09,237.2260744]
[1767565372953,6.7109,134.17,134.09,237.2260744]
[1767565373152,5.68627001,134.16,134.09,243.9408744]
[1767565373353,5.68627001,134.15,134.09,243.9408744]
[1767565373654,6.7109,134.17,134.09,243.9408744]
[1767565373854,5.68602193,134.16,134.09,243.9408744]
[1767565374058,5.68602193,134.15,134.09,243.9408744]
[1767565374250,6.7109,134.17,134.1,0.33479505]
[1767565374454,5.68523972,134.16,134.1,0.33479505]
[1767565374757,5.68523972,134.15,134.1,0.33479505]
[1767565374957,5.68513356,134.14,134.09,243.60607935]
[1767565375148,1.70798625,134.16,134.09,243.60607935]
[1767565375348,5.68358231,134.15,134.09,243.60607935]
[1767565375554,5.68358231,134.14,134.09,243.9408744]
[1767565375749,8.41938625,134.16,134.09,237.2260744]
[1767565375949,5.68356956,134.15,134.09,237.2260744]
[1767565376252,5.68356956,134.14,134.09,237.2260744]
[1767565376456,8.41938625,134.16,134.09,237.2260744]
[1767565376657,5.68167026,134.15,134.09,237.2260744]
[1767565376956,5.68167026,134.14,134.09,237.2260744]
[1767565377155,8.41938625,134.16,134.09,237.2260744]
[1767565377347,5.68033768,134.15,134.09,0.33479505]
[1767565377549,5.68033768,134.14,134.09,0.33479505]
[1767565377749,8.41938625,134.16,134.09,0.33479505]
[1767565377949,5.68033768,134.15,134.09,0.33479505]
[1767565378157,5.68033768,134.14,134.09,0.33479505]
[1767565378359,8.41938625,134.16,134.09,0.33479505]
[1767565378552,5.67923288,134.15,134.09,0.33479505]
[1767565378752,8.41938625,134.16,134.09,0.33479505]
[1767565378753,5.67923288,134.14,134.09,0.33479505]
[1767565378953,8.41938625,134.16,134.09,0.33479505]
[1767565379150,5.67923288,134.15,134.09,0.33479505]
[1767565379351,5.67923288,134.14,134.09,0.33479505]
[1767565379557,6.7114,134.16,134.09,0.33479505]
[1767565379761,5.67829425,134.15,134.09,0.33479505]
[1767565379961,5.67829425,134.14,134.09,0.33479505]
[1767565380157,6.7114,134.16,134.09,0.33479505]
[1767565380358,5.67797338,134.15,134.09,0.33479505]
[1767565380562,5.67797338,134.14,134.09,0.33479505]
[1767565380761,6.7114,134.16,134.09,0.33479505]
[1767565380962,5.67795789,134.15,134.09,0.33479505]
[1767565381153,5.67795789,134.14,134.09,0.33479505]
[1767565381357,6.7114,134.16,134.09,0.33479505]
[1767565381558,5.67721889,134.15,134.09,0.33479505]
[1767565381760,5.67721889,134.14,134.09,0.33479505]
[1767565381960,6.7114,134.16,134.09,0.33479505]
[1767565382160,5.67721889,134.15,134.09,0.33479505]
[1767565382365,5.67721889,134.14,134.09,0.33479505]
[1767565382568,6.7114,134.16,134.09,0.33479505]
[1767565382866,5.67589573,134.15,134.1,0.33507871]
[1767565383066,1.70798625,134.19,134.1,0.33507871]
[1767565383267,5.67613449,134.18,134.1,0.33507871]
[1767565383459,5.67613449,134.17,134.1,0.33507871]
[1767565383766,5.67613449,134.16,134.1,0.33507871]
[1767565383969,5.67613449,134.15,134.1,0.33507871]
[1767565384168,1.70798625,134.19,134.1,0.33507871]
[1767565384358,5.67651184,134.18,134.1,0.33507871]
[1767565384560,12.38751184,134.17,134.1,7.04927871]
[1767565384764,5.67651184,134.16,134.1,0.33507871]
[1767565384963,5.67651184,134.15,134.1,0.33507871]
[1767565385159,8.41898625,134.17,134.1,0.33507871]
[1767565385369,12.38765854,134.16,134.1,0.33507871]
[1767565385667,5.67615854,134.15,134.1,0.33507871]
[1767565385872,6.7115,134.16,134.1,0.33507871]
[1767565386063,5.67603002,134.15,134.1,0.33507871]
[1767565386367,6.7115,134.16,134.1,0.33507871]
[1767565386569,5.67591098,134.15,134.1,0.33507871]
[1767565386768,6.7115,134.16,134.1,0.33507871]
[1767565386968,5.67591098,134.15,134.1,0.33507871]
[1767565387164,6.7115,134.16,134.1,0.33507871]
[1767565387369,5.67593161,134.15,134.1,0.33507871]
[1767565387569,6.7115,134.16,134.1,0.33507871]
[1767565387769,5.67593161,134.15,134.1,0.33507871]
[1767565387970,6.7115,134.16,134.1,0.33507871]
[1767565388164,5.67593161,134.15,134.1,0.33507871]
[1767565388373,6.7115,134.16,134.1,0.33507871]
[1767565388562,5.67584547,134.15,134.1,0.33507871]
[1767565388762,6.7115,134.16,134.1,0.33507871]
[1767565388967,5.67584547,134.15,134.1,0.33507871]
[1767565389267,6.7115,134.16,134.1,0.33507871]
[1767565389469,5.67580836,134.15,134.1,0.33507871]
[1767565389668,6.7115,134.16,134.1,0.33507871]
[1767565389869,5.67580836,134.15,134.1,0.33507871]
[1767565390065,6.7115,134.16,134.1,0.33507871]
[1767565390265,5.67577547,134.15,134.1,0.33507871]
[1767565390467,6.7115,134.16,134.1,0.33507871]
[1767565390666,5.67584596,134.15,134.1,0.33507871]
[1767565390868,6.7115,134.16,134.1,0.33507871]
[1767565391068,5.67557016,134.15,134.1,0.33507871]
[1767565391268,6.7115,134.16,134.1,0.33507871]
[1767565391467,5.67549676,134.15,134.1,0.33507871]
[1767565391668,6.7115,134.16,134.1,0.33507871]
[1767565391973,5.67549676,134.15,134.1,0.33507871]
[1767565392165,6.7115,134.16,134.1,0.33507871]
[1767565392366,5.67548436,134.15,134.1,0.33507871]
[1767565392664,6.7115,134.16,134.1,0.33507871]
[1767565392864,5.67548436,134.15,134.1,0.33507871]
[1767565393164,6.7115,134.16,134.1,0.33507871]
[1767565393364,5.67553283,134.15,134.1,0.33507871]
[1767565393574,6.7115,134.16,134.1,0.33507871]
[1767565393773,5.67553283,134.15,134.1,0.33507871]
[1767565393974,6.7115,134.16,134.1,0.33507871]
[1767565394174,5.67553283,134.15,134.1,0.33507871]
[1767565394370,6.7115,134.16,134.1,0.33507871]
[1767565394572,5.67563656,134.15,134.1,0.33507871]
[1767565394771,6.7115,134.16,134.1,0.33507871]
[1767565394971,5.67563307,134.15,134.1,0.33507871]
[1767565395269,6.7115,134.16,134.1,0.33507871]
[1767565395475,5.67580556,134.15,134.1,0.33507871]
[1767565395773,6.7115,134.16,134.1,0.33507871]
[1767565395974,5.67580556,134.15,134.1,0.33507871]
[1767565396171,6.7115,134.16,134.1,0.33507871]
[1767565396369,5.67604223,134.15,134.1,0.33507871]
[1767565396568,5.67604223,134.14,134.1,0.33507871]
[1767565396770,6.7115,134.16,134.1,0.33507871]
[1767565396968,5.67604223,134.15,134.1,0.33507871]
[1767565397170,5.67604223,134.14,134.1,0.33507871]
[1767565397372,6.7115,134.16,134.1,0.33507871]
[1767565397671,5.67600968,134.15,134.1,0.33507871]
[1767565397972,5.67600968,134.14,134.1,0.33507871]
[1767565398171,6.7115,134.16,134.1,0.33507871]
[1767565398372,5.67601444,134.15,134.1,0.33507871]
[1767565398570,5.67601444,134.14,134.1,0.33507871]
[1767565398771,6.7115,134.16,134.1,0.33507871]
[1767565398969,5.67601444,134.15,134.1,0.33507871]
[1767565399169,5.67601444,134.14,134.1,0.33507871]
[1767565399372,6.7115,134.16,134.1,0.33507871]
[1767565399574,5.67843515,134.15,134.1,0.33507871]
[1767565399871,5.67843515,134.14,134.1,0.33507871]
[1767565400074,6.7115,134.16,134.1,0.33507871]
[1767565400270,5.67846179,134.15,134.1,0.33507871]
[1767565400471,5.67846179,134.14,134.1,0.33507871]
[1767565400673,6.7115,134.16,134.1,0.33507871]
[1767565400871,5.67851828,134.15,134.1,0.33507871]
[1767565401171,5.67851828,134.14,134.1,0.33507871]
[1767565401370,6.7115,134.16,134.1,0.33507871]
[1767565401569,5.67863867,134.15,134.1,0.33507871]
[1767565401769,5.67863867,134.14,134.1,0.33507871]
[1767565401969,6.7115,134.16,134.1,0.33507871]
[1767565402168,5.67865415,134.15,134.1,0.33507871]
[1767565402371,13.79482869,134.22,134.13,0.33507871]
[1767565402675,1.8646058,134.21,134.13,0.33507871]
[1767565402872,1.8646058,134.2,134.13,0.33507871]
[1767565403071,1.70798625,134.21,134.13,0.33507871]
[1767565403272,1.86430829,134.2,134.13,0.33507871]
[1767565403577,6.71,134.19,134.13,0.33507871]
[1767565414290,5.6572749,134.18,134.13,0.33507871]
[1767565414492,5.6572749,134.17,134.13,0.33507871]
[1767565414790,6.71,134.19,134.13,0.33507871]
[1767565415090,5.6572749,134.18,134.13,0.33507871]
[1767565415290,5.6572749,134.17,134.13,0.33507871]
[1767565415490,6.71,134.19,134.13,0.33507871]
[1767565415691,5.65705224,134.18,134.13,0.33507871]
[1767565415993,5.65705224,134.17,134.13,0.33507871]
[1767565416193,6.71,134.19,134.13,0.33507871]
[1767565416388,5.65682724,134.18,134.13,0.33507871]
[1767565416590,5.65682724,134.17,134.13,0.33507871]
[1767565416790,6.71,134.19,134.13,0.33507871]
[1767565416989,5.65682724,134.18,134.13,0.33507871]
[1767565417190,5.65682724,134.17,134.13,0.33507871]
[1767565417391,6.71,134.19,134.13,0.33507871]
[1767565417595,5.65652534,134.18,134.13,0.33507871]
[1767565417796,5.65652534,134.17,134.13,0.33507871]
[1767565417994,6.71,134.19,134.13,0.33507871]
[1767565418194,5.65652534,134.18,134.13,0.33507871]
[1767565418395,5.65652534,134.17,134.13,0.33507871]
[1767565418597,6.71,134.19,134.13,0.33507871]
[1767565418791,5.65627868,134.18,134.13,0.33507871]
[1767565418986,5.65627868,134.17,134.13,0.33507871]
[1767565419185,6.71,134.19,134.13,0.33507871]
[1767565419391,5.65599049,134.18,134.13,0.33507871]
[1767565419697,5.65599049,134.17,134.13,0.33507871]
[1767565419898,6.71,134.19,134.13,0.33507871]
[1767565420084,5.65599049,134.18,134.13,0.33507871]
[1767565420289,5.65599049,134.17,134.13,0.33507871]
[1767565420489,6.71,134.19,134.13,0.33507871]
[1767565420685,5.65585778,134.18,134.13,0.33507871]
[1767565420895,5.65585778,134.17,134.13,0.33507871]
[1767565421093,6.71,134.19,134.13,0.33507871]
[1767565421294,5.65579627,134.18,134.13,0.33507871]
[1767565421494,5.65579627,134.17,134.13,0.33507871]
[1767565421694,6.71,134.19,134.13,0.33507871]
[1767565421888,5.65589422,134.18,134.13,0.33507871]
[1767565422086,5.65589422,134.17,134.13,0.33507871]
[1767565422287,6.71,134.19,134.13,0.33507871]
[1767565422496,5.65598144,134.18,134.13,0.33507871]
[1767565422701,5.65598144,134.17,134.13,0.33507871]
[1767565422903,6.71,134.19,134.13,0.33507871]
[1767565423098,5.65598144,134.18,134.13,0.33507871]
[1767565423301,5.65598144,134.17,134.13,0.33507871]
[1767565423491,6.71,134.19,134.13,0.33507871]
[1767565423688,5.65611895,134.18,134.13,0.33507871]
[1767565423902,5.65611895,134.17,134.11,0.30919299]
[1767565424103,6.7105,134.18,134.11,0.30919299]
[1767565424302,5.65615194,134.17,134.11,0.30919299]
[1767565424504,6.7105,134.18,134.11,0.30919299]
[1767565424704,5.65634109,134.17,134.11,0.30919299]
[1767565424901,6.7105,134.18,134.11,0.30919299]
[1767565425100,5.65633833,134.17,134.11,0.30919299]
[1767565425299,6.7105,134.18,134.11,0.30919299]
[1767565425504,5.65636212,134.17,134.11,0.30919299]
[1767565425804,6.7105,134.18,134.11,0.30919299]
[1767565426104,5.65636212,134.17,134.11,0.30919299]
[1767565426404,6.7105,134.18,134.11,0.30919299]
[1767565426601,5.65662845,134.17,134.11,0.30919299]
[1767565426903,5.65674807,134.16,134.11,0.30919299]
[1767565427102,5.65674807,134.15,134.11,0.30919299]
[1767565427292,6.7109,134.17,134.11,0.30919299]
[1767565427496,5.65761137,134.16,134.11,0.30919299]
[1767565427693,5.65761137,134.15,134.11,0.30919299]
[1767565427904,6.7109,134.17,134.11,0.30919299]
[1767565428106,5.65761137,134.16,134.11,0.30919299]
[1767565428305,5.65761137,134.15,134.11,0.30919299]
[1767565428501,6.7109,134.17,134.11,0.30919299]
[1767565428702,5.65749245,134.16,134.11,0.30919299]
[1767565428898,6.7109,134.17,134.11,0.30919299]
[1767565429098,5.65749245,134.16,134.11,0.30919299]
[1767565429302,6.7109,134.17,134.11,0.30919299]
[1767565429503,5.65345139,134.16,134.11,0.30919299]
[1767565429706,6.7109,134.17,134.11,0.30919299]
[1767565430005,5.65345139,134.16,134.11,0.30919299]
[1767565430208,6.7109,134.17,134.11,0.30919299]
[1767565430409,5.65349737,134.16,134.11,0.30919299]
[1767565430600,6.7109,134.17,134.11,0.30919299]
[1767565430800,5.65349737,134.16,134.11,0.30919299]
[1767565431001,6.7109,134.17,134.11,0.30919299]
[1767565431300,5.65349737,134.16,134.11,0.30919299]
[1767565431501,6.7109,134.17,134.11,0.30919299]
[1767565431701,5.65365466,134.16,134.11,0.30919299]
[1767565431901,6.7109,134.17,134.11,0.30919299]
[1767565432102,5.65365466,134.16,134.11,0.30919299]
[1767565432302,6.7109,134.17,134.11,0.30919299]
[1767565432504,5.65381811,134.16,134.11,0.30919299]
[1767565432801,6.7109,134.17,134.11,0.30919299]
[1767565433000,5.65381811,134.16,134.11,0.30919299]
[1767565433201,6.7109,134.17,134.11,0.30919299]
[1767565433396,5.65398791,134.16,134.11,0.30919299]
[1767565433602,6.7109,134.17,134.11,0.30919299]
[1767565433907,5.65398791,134.16,134.11,0.30919299]
[1767565434108,6.7109,134.17,134.11,0.30919299]
[1767565434308,5.65416429,134.16,134.11,0.30919299]
[1767565434503,6.7109,134.17,134.11,0.30919299]
[1767565434703,5.65416429,134.16,134.11,0.30919299]
[1767565434906,6.7109,134.17,134.11,0.30919299]
[1767565435207,5.65416429,134.16,134.11,0.30919299]
[1767565435507,6.7109,134.17,134.11,0.30919299]
[1767565435806,5.65434748,134.16,134.11,0.30919299]
[1767565436008,6.7109,134.17,134.11,0.30919299]
[1767565436207,5.65434748,134.16,134.11,0.30919299]
[1767565436408,6.7109,134.17,134.11,0.30919299]
[1767565436611,5.65468712,134.16,134.11,0.30919299]
[1767565436808,6.7109,134.17,134.11,0.30919299]
[1767565437009,5.65468712,134.16,134.11,0.30919299]
[1767565437209,5.65504509,134.15,134.11,0.30919299]
[1767565437409,6.7109,134.17,134.11,0.30919299]
[1767565437610,5.65504509,134.16,134.11,0.30919299]
[1767565437809,5.65504509,134.15,134.11,0.30919299]
[1767565438011,6.7109,134.17,134.11,0.30919299]
[1767565438210,5.65504509,134.16,134.11,0.30919299]
[1767565438401,5.65504509,134.15,134.11,0.30919299]
[1767565438605,6.7109,134.17,134.11,0.30919299]
[1767565438911,5.65542284,134.16,134.1,6.7143]
[1767565439100,5.65542284,134.15,134.1,6.7143]
[1767565439301,6.7109,134.17,134.1,6.7143]
[1767565439510,5.65583151,134.16,134.1,6.7143]
[1767565439710,5.65583151,134.15,134.1,6.7143]
[1767565439911,6.7109,134.17,134.1,6.7143]
[1767565440210,5.65582875,134.16,134.1,6.7143]
[1767565440413,5.65582875,134.15,134.1,6.7143]
[1767565440711,6.7109,134.17,134.1,6.7143]
[1767565441012,5.65658804,134.16,134.1,6.7143]
[1767565441211,5.65658804,134.15,134.1,6.7143]
[1767565441414,6.7109,134.17,134.1,6.7143]
[1767565441604,5.65684194,134.16,134.1,6.7143]
[1767565441801,5.65684194,134.15,134.1,6.7143]
[1767565442007,6.7109,134.17,134.07,0.31875572]
[1767565442008,5.65696158,134.14,134.07,0.31875572]
[1767565442208,5.65696158,134.13,134.07,0.31875572]
[1767565442517,88.08,134.16,134.07,0.31875572]
[1767565442711,5.65670707,134.15,134.07,0.31875572]
[1767565442913,5.65670707,134.14,134.07,0.31875572]
[1767565443121,5.65670707,134.13,134.07,0.31875572]
[1767565443323,88.08,134.16,134.07,0.31875572]
[1767565443615,6.7125,134.14,134.07,7.03455572]
[1767565443822,5.65609875,134.13,134.07,7.03455572]
[1767565444013,6.7125,134.14,134.07,7.03455572]
[1767565444213,5.65609875,134.13,134.07,7.03455572]
[1767565444519,6.7125,134.14,134.07,7.03455572]
[1767565444720,5.65551883,134.13,134.07,7.03455572]
[1767565445019,6.7125,134.14,134.07,7.03455572]
[1767565445219,5.65551883,134.13,134.07,7.03455572]
[1767565445423,6.7125,134.14,134.07,7.03455572]
[1767565445622,5.65527412,134.13,134.07,7.03455572]
[1767565445814,6.7125,134.14,134.07,7.03455572]
[1767565446017,12.36817525,134.13,134.07,0.31875572]
[1767565446216,5.65527525,134.12,134.07,0.31875572]
[1767565447318,6.7129,134.13,134.07,0.31875572]
[1767565448325,88.08,134.16,134.07,0.31875572]
[1767565448527,5.65187334,134.15,134.07,0.31875572]
[1767565448725,5.65187334,134.14,134.07,0.31875572]
[1767565448926,5.65187334,134.13,134.07,0.31875572]
[1767565449127,88.08,134.16,134.07,0.31875572]
[1767565449326,5.65180507,134.15,134.07,0.31875572]
[1767565449521,12.36420507,134.14,134.07,0.31875572]
[1767565449728,5.65180507,134.13,134.07,0.31875572]
[1767565449914,6.7124,134.14,134.07,0.31875572]
[1767565450114,5.6509051,134.13,134.07,0.31875572]
[1767565450319,6.7124,134.14,134.07,0.31875572]
[1767565450515,5.65007205,134.13,134.07,0.31875572]
[1767565450725,6.7124,134.14,134.07,0.31875572]
[1767565451026,5.65007252,134.13,134.07,0.31875572]
[1767565451219,6.7124,134.14,134.07,0.31875572]
[1767565451414,5.64936072,134.13,134.07,0.31875572]
[1767565451614,6.7124,134.14,134.07,0.31875572]
[1767565451817,5.64936072,134.13,134.07,0.31875572]
[1767565452125,6.7124,134.14,134.07,0.31875572]
[1767565452424,5.64932456,134.13,134.07,0.31875572]
[1767565452621,6.7124,134.14,134.07,0.31875572]
[1767565452821,5.6487569,134.13,134.07,0.31875572]
[1767565453024,6.7124,134.14,134.07,0.31875572]
[1767565453220,5.6487569,134.13,134.07,0.31875572]
[1767565453421,6.7124,134.14,134.07,0.31875572]
[1767565453623,5.64825127,134.13,134.07,0.31875572]
[1767565453924,6.7124,134.14,134.07,0.31875572]
[1767565454124,5.64825127,134.13,134.07,0.31875572]
[1767565454320,6.7124,134.14,134.07,0.31875572]
[1767565454521,5.64778832,134.13,134.07,0.31875572]
[1767565454827,6.7124,134.14,134.07,0.31875572]
[1767565455029,5.64778832,134.13,134.07,7.03455572]
[1767565455216,6.7124,134.14,134.07,7.03455572]
[1767565455421,5.64740772,134.13,134.07,7.03455572]
[1767565455618,6.7124,134.14,134.07,7.03455572]
[1767565455816,5.64740772,134.13,134.07,7.03455572]
[1767565456016,6.7124,134.14,134.07,7.03455572]
[1767565456227,5.64740772,134.13,134.07,7.03455572]
[1767565456528,6.7124,134.14,134.07,7.03455572]
[1767565456720,5.64710543,134.13,134.07,7.03455572]
[1767565456925,6.7124,134.14,134.07,7.03455572]
[1767565457121,5.64739479,134.13,134.07,0.31875572]
[1767565457319,5.64739479,134.12,134.07,0.31875572]
[1767565457529,6.7124,134.14,134.07,0.31875572]
[1767565457726,5.64700035,134.13,134.07,0.31875572]
[1767565457932,5.64700035,134.12,134.07,0.31875572]
[1767565458228,6.7124,134.14,134.07,0.31875572]
[1767565458430,5.64643656,134.13,134.07,0.31875572]
[1767565458729,5.64643656,134.12,134.07,0.31875572]
[1767565458930,6.7124,134.14,134.07,0.31875572]
[1767565459128,5.64643656,134.13,134.07,0.31875572]
[1767565459318,5.64643656,134.12,134.07,0.31875572]
[1767565459517,6.7124,134.14,134.07,0.31875572]
[1767565459830,5.64872725,134.13,134.07,0.31875572]
[1767565460029,5.64872725,134.12,134.07,0.31875572]
[1767565460230,6.7131,134.13,134.06,6.7163]
[1767565460423,5.64843693,134.12,134.06,6.7163]
[1767565460623,6.7131,134.13,134.06,6.7163]
[1767565460823,5.64844082,134.12,134.06,6.7163]
[1767565461026,6.7131,134.13,134.06,6.7163]
[1767565461227,5.64844082,134.12,134.06,6.7163]
[1767565461530,6.7131,134.13,134.06,6.7163]
[1767565461723,5.64799583,134.12,134.06,6.7163]
[1767565461924,6.7131,134.13,134.06,6.7163]
[1767565462125,5.64799582,134.12,134.06,6.7163]
[1767565462326,6.7131,134.13,134.06,6.7163]
[1767565462528,5.64770244,134.12,134.06,6.7163]
[1767565462728,5.64820049,134.11,134.05,0.31875572]
[1767565462929,6.7134,134.12,134.05,0.31875572]
[1767565463129,5.64821133,134.11,134.05,0.31875572]
[1767565463329,6.7134,134.12,134.05,0.31875572]
[1767565463538,5.64741782,134.11,134.05,7.03555572]
[1767565463738,6.7134,134.12,134.05,7.03555572]
[1767565463933,5.64741782,134.11,134.05,7.03555572]
[1767565464131,6.7134,134.12,134.05,0.31875572]
[1767565464435,5.64769947,134.11,134.03,88.39875572]
[1767565464639,6.714,134.11,134.03,0.31875572]
[1767565464839,5.64714595,134.1,134.03,0.31875572]
[1767565465140,6.714,134.11,134.03,0.31875572]
[1767565465338,5.6463575,134.1,134.03,0.31875572]
[1767565465539,6.714,134.11,134.04,6.7173]
[1767565465728,5.6463575,134.1,134.04,6.7173]
[1767565465930,6.714,134.11,134.04,6.7173]
[1767565466139,5.64641724,134.1,134.04,6.7173]
[1767565466337,6.714,134.11,134.04,6.7173]
[1767565466538,5.64559008,134.1,134.04,6.7173]
[1767565466731,6.714,134.11,134.04,6.7173]
[1767565466933,12.36019008,134.1,134.03,0.31875572]
[1767565467241,5.64559008,134.09,134.03,0.31875572]